[Event "Titled Tuesday Blitz December 13 Early 2022"]
[White "Khandelwal, Ankush"]
[Black "Yeremyan, Alen"]
[WhiteFideId "413470"]
[BlackFideId "13308998"]
[WhiteElo "2271"]
[BlackElo "2159"]
[Result "1-0"]
[Round "03"]
[TimeControl "180+1"]
[Date "2022.12.14"]
[WhiteClock "0:00:09"]
[BlackClock "0:01:20"]

1. e4 {[%clk 0:03:00]}  Nf6 {[%clk 0:03:00]} 2. e5 {[%clk 0:03:00]}  Nd5 {[%clk 0:02:59]} 3. d4 {[%clk 0:03:00]}  d6 {[%clk 0:02:59]} 4. Nf3 {[%clk 0:03:01]}  Bg4 {[%clk 0:02:59]} 5. Be2 {[%clk 0:02:37]}  c6 {[%clk 0:03:00]} 6. c4 {[%clk 0:02:27]}  Nb6 {[%clk 0:02:59]} 7. Nbd2 {[%clk 0:02:23]}  N8d7 {[%clk 0:02:54]} 8. O-O {[%clk 0:02:13]}  Bxf3 {[%clk 0:02:54]} 9. Nxf3 {[%clk 0:02:10]}  dxe5 {[%clk 0:02:55]} 10. dxe5 {[%clk 0:02:07]}  e6 {[%clk 0:02:55]} 11. Qd4 {[%clk 0:01:22]}  Qc7 {[%clk 0:02:47]} 12. Bg5 {[%clk 0:01:19]}  h6 {[%clk 0:02:45]} 13. Qh4 {[%clk 0:01:08]}  Bc5 {[%clk 0:02:40]} 14. Rad1 {[%clk 0:00:51]}  Nxe5 {[%clk 0:02:30]} 15. Bf4 {[%clk 0:00:39]}  Nxf3+ {[%clk 0:02:27]} 16. Bxf3 {[%clk 0:00:40]}  Qe7 {[%clk 0:02:27]} 17. Qg3 {[%clk 0:00:38]}  g5 {[%clk 0:02:16]} 18. Be5 {[%clk 0:00:34]}  f6 {[%clk 0:02:14]} 19. Bc3 {[%clk 0:00:24]}  Nxc4 {[%clk 0:02:06]} 20. Bh5+ {[%clk 0:00:24]}  Kf8 {[%clk 0:02:06]} 21. Kh1 {[%clk 0:00:22]}  Nd6 {[%clk 0:02:04]} 22. Qd3 {[%clk 0:00:16]}  e5 {[%clk 0:01:35]} 23. b4 {[%clk 0:00:16]}  Bd4 {[%clk 0:01:22]} 24. Bxd4 {[%clk 0:00:16]}  exd4 {[%clk 0:01:23]} 25. f4 {[%clk 0:00:16]}  Qe4 {[%clk 0:01:19]} 26. Qa3 {[%clk 0:00:14]}  Nc4 {[%clk 0:01:18]} 27. Qc1 {[%clk 0:00:14]}  Ne3 {[%clk 0:01:18]} 28. fxg5 {[%clk 0:00:14]}  Nxf1 {[%clk 0:01:16]} 29. Rxf1 {[%clk 0:00:13]}  hxg5 {[%clk 0:01:17]} 30. Rxf6+ {[%clk 0:00:13]}  Ke7 {[%clk 0:01:17]} 31. Qxg5 {[%clk 0:00:11]}  Rxh5 {[%clk 0:01:17]} 32. Qg7+ {[%clk 0:00:12]}  Kd8 {[%clk 0:01:17]} 33. Rf8+ {[%clk 0:00:05]}  Qe8 {[%clk 0:01:18]} 34. Rxe8+ {[%clk 0:00:06]}  Kxe8 {[%clk 0:01:19]} 35. Qg6+ {[%clk 0:00:06]}  Kd7 {[%clk 0:01:20]} 36. Qxh5 {[%clk 0:00:07]}  Re8 {[%clk 0:01:20]} 37. Qg4+ {[%clk 0:00:08]}  Kc7 {[%clk 0:01:20]} 38. h4 {[%clk 0:00:08]}  d3 {[%clk 0:01:19]} 39. Qg3+ {[%clk 0:00:08]}  Kb6 {[%clk 0:01:20]} 40. Qxd3 {[%clk 0:00:09]}  Re1+ {[%clk 0:01:20]} 41. Kh2 {[%clk 0:00:09]}  Rc1 {[%clk 0:01:20]} 42. Qe3+ {[%clk 0:00:09]} 1-0


[Site "https://www.chess.com"]

[Event "Titled Tuesday Blitz December 13 Early 2022"]
[White "Khoroshev, Nikita"]
[Black "Ronka, Erik"]
[WhiteFideId "14200287"]
[BlackFideId "505080"]
[WhiteElo "2354"]
[BlackElo "2264"]
[Result "1-0"]
[Round "03"]
[TimeControl "180+1"]
[Date "2022.12.14"]
[WhiteClock "0:00:54"]
[BlackClock "0:00:03"]

1. d4 {[%clk 0:03:00]}  Nf6 {[%clk 0:02:59]} 2. c4 {[%clk 0:02:54]}  g6 {[%clk 0:02:59]} 3. Nc3 {[%clk 0:02:48]}  Bg7 {[%clk 0:03:00]} 4. e4 {[%clk 0:02:47]}  d6 {[%clk 0:03:00]} 5. h3 {[%clk 0:02:45]}  O-O {[%clk 0:03:01]} 6. Be3 {[%clk 0:02:45]}  c5 {[%clk 0:02:59]} 7. Nf3 {[%clk 0:02:38]}  cxd4 {[%clk 0:02:58]} 8. Nxd4 {[%clk 0:02:39]}  b6 {[%clk 0:02:58]} 9. Bd3 {[%clk 0:02:37]}  Bb7 {[%clk 0:02:59]} 10. O-O {[%clk 0:02:37]}  Nbd7 {[%clk 0:02:59]} 11. Re1 {[%clk 0:02:35]}  Rc8 {[%clk 0:02:58]} 12. Rc1 {[%clk 0:02:35]}  Ne5 {[%clk 0:02:55]} 13. b3 {[%clk 0:02:34]}  e6 {[%clk 0:02:31]} 14. Bb1 {[%clk 0:02:26]}  a6 {[%clk 0:02:19]} 15. f4 {[%clk 0:02:17]}  Ned7 {[%clk 0:02:18]} 16. Qd2 {[%clk 0:02:14]}  Nc5 {[%clk 0:02:07]} 17. Bf2 {[%clk 0:02:15]}  e5 {[%clk 0:02:07]} 18. fxe5 {[%clk 0:02:02]}  dxe5 {[%clk 0:02:07]} 19. Nf3 {[%clk 0:02:03]}  Qxd2 {[%clk 0:01:54]} 20. Nxd2 {[%clk 0:02:04]}  Bh6 {[%clk 0:01:54]} 21. Rcd1 {[%clk 0:02:03]}  b5 {[%clk 0:01:35]} 22. Nd5 {[%clk 0:01:52]}  Nxd5 {[%clk 0:01:28]} 23. exd5 {[%clk 0:01:48]}  Bxd2 {[%clk 0:01:27]} 24. Rxd2 {[%clk 0:01:46]}  bxc4 {[%clk 0:01:15]} 25. bxc4 {[%clk 0:01:46]}  f6 {[%clk 0:01:15]} 26. Rb2 {[%clk 0:01:40]}  Rf7 {[%clk 0:01:12]} 27. Bc2 {[%clk 0:01:37]}  a5 {[%clk 0:00:51]} 28. Rb5 {[%clk 0:01:31]}  Na6 {[%clk 0:00:40]} 29. Rxa5 {[%clk 0:01:26]}  Nb4 {[%clk 0:00:29]} 30. Bb3 {[%clk 0:01:23]}  Rd7 {[%clk 0:00:15]} 31. Ra7 {[%clk 0:01:17]}  Nd3 {[%clk 0:00:12]} 32. Rb1 {[%clk 0:01:06]}  Ra8 {[%clk 0:00:03]} 33. Rxa8+ {[%clk 0:00:57]}  Bxa8 {[%clk 0:00:04]} 34. Bb6 {[%clk 0:00:56]}  e4 {[%clk 0:00:04]} 35. c5 {[%clk 0:00:54]}  Bxd5 {[%clk 0:00:02]} 36. Bxd5+ {[%clk 0:00:53]}  Rxd5 {[%clk 0:00:03]} 37. c6 {[%clk 0:00:54]} 1-0


[Site "https://www.chess.com"]

[Event "Titled Tuesday Blitz December 13 Early 2022"]
[White "Kim, Sergey"]
[Black "Chernomordik, Pavel"]
[WhiteFideId "13700570"]
[BlackFideId "2804530"]
[WhiteElo "2586"]
[BlackElo "2193"]
[Result "1-0"]
[Round "03"]
[TimeControl "180+1"]
[Date "2022.12.14"]
[WhiteClock "0:01:33"]
[BlackClock "0:01:33"]

1. d4 {[%clk 0:03:00]}  g6 {[%clk 0:02:59]} 2. c4 {[%clk 0:03:00]}  Bg7 {[%clk 0:02:59]} 3. Nc3 {[%clk 0:03:00]}  d6 {[%clk 0:02:59]} 4. e4 {[%clk 0:03:01]}  Nf6 {[%clk 0:02:57]} 5. Nge2 {[%clk 0:03:01]}  c6 {[%clk 0:02:57]} 6. Ng3 {[%clk 0:03:01]}  a6 {[%clk 0:02:56]} 7. a4 {[%clk 0:03:00]}  a5 {[%clk 0:02:55]} 8. Be2 {[%clk 0:03:00]}  O-O {[%clk 0:02:51]} 9. O-O {[%clk 0:02:59]}  Na6 {[%clk 0:02:48]} 10. Ra3 {[%clk 0:02:56]}  e5 {[%clk 0:02:40]} 11. d5 {[%clk 0:02:54]}  h5 {[%clk 0:02:29]} 12. Bg5 {[%clk 0:02:52]}  Qc7 {[%clk 0:02:25]} 13. Qd2 {[%clk 0:02:48]}  c5 {[%clk 0:02:13]} 14. Nb5 {[%clk 0:02:46]}  Qd7 {[%clk 0:02:11]} 15. h3 {[%clk 0:02:15]}  Nh7 {[%clk 0:02:08]} 16. Bh4 {[%clk 0:02:00]}  Nc7 {[%clk 0:01:59]} 17. Bxh5 {[%clk 0:01:53]}  Nxb5 {[%clk 0:01:55]} 18. axb5 {[%clk 0:01:52]}  gxh5 {[%clk 0:01:54]} 19. Nf5 {[%clk 0:01:52]}  Qc7 {[%clk 0:01:46]} 20. Nxg7 {[%clk 0:01:42]}  Kxg7 {[%clk 0:01:45]} 21. Rg3+ {[%clk 0:01:43]}  Kh8 {[%clk 0:01:37]} 22. Bf6+ {[%clk 0:01:33]}  Nxf6 {[%clk 0:01:33]} 23. Qh6+ {[%clk 0:01:33]}  Nh7 {[%clk 0:01:33]} 24. Qg7# {[%clk 0:01:33]} 1-0


[Site "https://www.chess.com"]

[Event "Titled Tuesday Blitz December 13 Early 2022"]
[White "Kodinets, Konstantin L."]
[Black "Orozbaev, Eldiar"]
[WhiteFideId "4122011"]
[BlackFideId "13802240"]
[WhiteElo "2447"]
[BlackElo "2154"]
[Result "0-1"]
[Round "03"]
[TimeControl "180+1"]
[Date "2022.12.14"]
[WhiteClock "0:00:02"]
[BlackClock "0:00:02"]

1. d4 {[%clk 0:03:00]}  c5 {[%clk 0:02:56]} 2. d5 {[%clk 0:03:00]}  d6 {[%clk 0:02:56]} 3. e4 {[%clk 0:02:59]}  e5 {[%clk 0:02:56]} 4. Bb5+ {[%clk 0:02:57]}  Bd7 {[%clk 0:02:56]} 5. a4 {[%clk 0:02:58]}  f5 {[%clk 0:02:56]} 6. exf5 {[%clk 0:02:57]}  Bxb5 {[%clk 0:02:55]} 7. axb5 {[%clk 0:02:44]}  Nf6 {[%clk 0:02:53]} 8. Ne2 {[%clk 0:02:38]}  Be7 {[%clk 0:02:50]} 9. Nbc3 {[%clk 0:02:36]}  O-O {[%clk 0:02:50]} 10. Ng3 {[%clk 0:02:35]}  Nbd7 {[%clk 0:02:43]} 11. O-O {[%clk 0:02:34]}  a6 {[%clk 0:02:43]} 12. bxa6 {[%clk 0:02:32]}  Qb6 {[%clk 0:02:42]} 13. Qd3 {[%clk 0:02:24]}  bxa6 {[%clk 0:02:41]} 14. b3 {[%clk 0:02:22]}  Rfc8 {[%clk 0:02:39]} 15. Ra4 {[%clk 0:02:10]}  Qb7 {[%clk 0:02:33]} 16. Nge4 {[%clk 0:01:59]}  Nb6 {[%clk 0:02:20]} 17. Nxf6+ {[%clk 0:01:55]}  Bxf6 {[%clk 0:02:21]} 18. Rg4 {[%clk 0:01:54]}  Kh8 {[%clk 0:02:15]} 19. Bg5 {[%clk 0:01:50]}  Bxg5 {[%clk 0:02:12]} 20. Rxg5 {[%clk 0:01:50]}  c4 {[%clk 0:02:13]} 21. bxc4 {[%clk 0:01:44]}  Rxc4 {[%clk 0:02:14]} 22. Rd1 {[%clk 0:01:42]}  Rac8 {[%clk 0:02:13]} 23. Ne4 {[%clk 0:01:41]}  Rd4 {[%clk 0:02:05]} 24. Qe2 {[%clk 0:01:41]}  Qxd5 {[%clk 0:02:04]} 25. Rxd4 {[%clk 0:01:40]}  Qxd4 {[%clk 0:02:04]} 26. h4 {[%clk 0:01:33]}  Rf8 {[%clk 0:01:42]} 27. Rh5 {[%clk 0:01:19]}  Kg8 {[%clk 0:01:26]} 28. c3 {[%clk 0:01:04]}  Qc4 {[%clk 0:01:24]} 29. Qe3 {[%clk 0:00:56]}  Nd5 {[%clk 0:01:22]} 30. Qf3 {[%clk 0:00:46]}  a5 {[%clk 0:01:09]} 31. Nxd6 {[%clk 0:00:27]}  Qc6 {[%clk 0:00:57]} 32. c4 {[%clk 0:00:19]}  a4 {[%clk 0:00:48]} 33. cxd5 {[%clk 0:00:15]}  Qxd6 {[%clk 0:00:48]} 34. Rg5 {[%clk 0:00:12]}  a3 {[%clk 0:00:47]} 35. Qb3 {[%clk 0:00:10]}  Qa6 {[%clk 0:00:36]} 36. Qa2 {[%clk 0:00:05]}  Qd3 {[%clk 0:00:32]} 37. d6+ {[%clk 0:00:03]}  Kh8 {[%clk 0:00:31]} 38. f6 {[%clk 0:00:03]}  gxf6 {[%clk 0:00:30]} 39. Rg3 {[%clk 0:00:03]}  Qd1+ {[%clk 0:00:23]} 40. Kh2 {[%clk 0:00:04]}  Qxd6 {[%clk 0:00:23]} 41. Rxa3 {[%clk 0:00:03]}  e4+ {[%clk 0:00:23]} 42. g3 {[%clk 0:00:04]}  Rb8 {[%clk 0:00:14]} 43. Ra8 {[%clk 0:00:04]}  Kg7 {[%clk 0:00:11]} 44. Rxb8 {[%clk 0:00:04]}  Qxb8 {[%clk 0:00:12]} 45. Qe6 {[%clk 0:00:04]}  Qb7 {[%clk 0:00:06]} 46. h5 {[%clk 0:00:03]}  Qa7 {[%clk 0:00:03]} 47. Kg2 {[%clk 0:00:01]}  e3 {[%clk 0:00:02]} 48. Qxe3 {[%clk 0:00:01]}  Qa8+ {[%clk 0:00:02]} 49. Qf3 {[%clk 0:00:02]}  Qa5 {[%clk 0:00:02]} 50. Qg4+ {[%clk 0:00:03]}  Kf7 {[%clk 0:00:03]} 51. Qf4 {[%clk 0:00:03]}  Qd5+ {[%clk 0:00:03]} 52. Qf3 {[%clk 0:00:03]}  Qg5 {[%clk 0:00:04]} 53. g4 {[%clk 0:00:03]}  Qh4 {[%clk 0:00:03]} 54. Qg3 {[%clk 0:00:03]}  Qg5 {[%clk 0:00:03]} 55. f3 {[%clk 0:00:03]}  Qd5 {[%clk 0:00:03]} 56. Kh3 {[%clk 0:00:03]}  Qd1 {[%clk 0:00:03]} 57. Qg2 {[%clk 0:00:03]}  Qc1 {[%clk 0:00:03]} 58. Qf2 {[%clk 0:00:03]}  Kg7 {[%clk 0:00:03]} 59. Kg2 {[%clk 0:00:03]}  Kh6 {[%clk 0:00:04]} 60. Qe2 {[%clk 0:00:03]}  Kg5 {[%clk 0:00:03]} 61. Qf2 {[%clk 0:00:02]}  Qd1 {[%clk 0:00:02]} 0-1


[Site "https://www.chess.com"]

[Event "Titled Tuesday Blitz December 13 Early 2022"]
[White "Korchmar, Vasiliy"]
[Black "Yilmaz, Mustafa"]
[WhiteFideId "24131750"]
[BlackFideId "6302718"]
[WhiteElo "2370"]
[BlackElo "2564"]
[Result "0-1"]
[Round "03"]
[TimeControl "180+1"]
[Date "2022.12.13"]
[WhiteClock "0:00:07"]
[BlackClock "0:00:10"]

1. e4 {[%clk 0:03:00]}  c5 {[%clk 0:02:55]} 2. Nf3 {[%clk 0:03:01]}  d6 {[%clk 0:02:55]} 3. d4 {[%clk 0:03:01]}  cxd4 {[%clk 0:02:56]} 4. Nxd4 {[%clk 0:03:02]}  Nf6 {[%clk 0:02:56]} 5. Nc3 {[%clk 0:03:02]}  a6 {[%clk 0:02:57]} 6. Be2 {[%clk 0:03:02]}  e5 {[%clk 0:02:57]} 7. Nb3 {[%clk 0:03:03]}  Be7 {[%clk 0:02:58]} 8. O-O {[%clk 0:03:03]}  O-O {[%clk 0:02:58]} 9. Be3 {[%clk 0:03:04]}  Be6 {[%clk 0:02:58]} 10. Nd5 {[%clk 0:03:04]}  Nbd7 {[%clk 0:02:57]} 11. Qd3 {[%clk 0:03:03]}  Bxd5 {[%clk 0:02:57]} 12. exd5 {[%clk 0:03:04]}  Rc8 {[%clk 0:02:55]} 13. c4 {[%clk 0:03:02]}  Ne8 {[%clk 0:02:53]} 14. f4 {[%clk 0:02:50]}  Bf6 {[%clk 0:02:50]} 15. f5 {[%clk 0:02:32]}  e4 {[%clk 0:02:49]} 16. Qd2 {[%clk 0:02:25]}  Be5 {[%clk 0:02:39]} 17. Bd4 {[%clk 0:02:05]}  Qf6 {[%clk 0:02:34]} 18. Rac1 {[%clk 0:01:56]}  Nc5 {[%clk 0:02:33]} 19. Bxe5 {[%clk 0:01:50]}  Qxe5 {[%clk 0:02:31]} 20. Nxc5 {[%clk 0:01:42]}  dxc5 {[%clk 0:02:32]} 21. Qc3 {[%clk 0:01:18]}  Qxc3 {[%clk 0:02:05]} 22. Rxc3 {[%clk 0:01:19]}  Nd6 {[%clk 0:02:05]} 23. f6 {[%clk 0:01:19]}  g6 {[%clk 0:01:54]} 24. Bg4 {[%clk 0:01:19]}  Rce8 {[%clk 0:01:50]} 25. h4 {[%clk 0:01:14]}  Re5 {[%clk 0:01:51]} 26. Kf2 {[%clk 0:01:13]}  h5 {[%clk 0:01:48]} 27. Bh3 {[%clk 0:01:12]}  e3+ {[%clk 0:01:41]} 28. Rxe3 {[%clk 0:01:01]}  Rxe3 {[%clk 0:01:42]} 29. Kxe3 {[%clk 0:01:01]}  Nxc4+ {[%clk 0:01:43]} 30. Kd3 {[%clk 0:00:52]}  Nb6 {[%clk 0:00:50]} 31. Rc1 {[%clk 0:00:32]}  c4+ {[%clk 0:00:26]} 32. Kd4 {[%clk 0:00:21]}  Rd8 {[%clk 0:00:27]} 33. Kc5 {[%clk 0:00:20]}  Nxd5 {[%clk 0:00:26]} 34. Rxc4 {[%clk 0:00:13]}  Nxf6 {[%clk 0:00:23]} 35. Kb6 {[%clk 0:00:12]}  Rd2 {[%clk 0:00:23]} 36. b4 {[%clk 0:00:03]}  Rxa2 {[%clk 0:00:24]} 37. Kxb7 {[%clk 0:00:04]}  Nd5 {[%clk 0:00:08]} 38. Rd4 {[%clk 0:00:03]}  Nc3 {[%clk 0:00:06]} 39. Kb6 {[%clk 0:00:03]}  Nb5 {[%clk 0:00:05]} 40. Rd8+ {[%clk 0:00:02]}  Kg7 {[%clk 0:00:06]} 41. Bc8 {[%clk 0:00:01]}  Rxg2 {[%clk 0:00:06]} 42. Bxa6 {[%clk 0:00:01]}  Nc3 {[%clk 0:00:06]} 43. b5 {[%clk 0:00:02]}  Rg4 {[%clk 0:00:06]} 44. Kc5 {[%clk 0:00:02]}  Rxh4 {[%clk 0:00:07]} 45. b6 {[%clk 0:00:02]}  Na4+ {[%clk 0:00:07]} 46. Kb5 {[%clk 0:00:02]}  Nxb6 {[%clk 0:00:08]} 47. Kxb6 {[%clk 0:00:02]}  Re4 {[%clk 0:00:07]} 48. Bb7 {[%clk 0:00:02]}  Re1 {[%clk 0:00:08]} 49. Bd5 {[%clk 0:00:02]}  h4 {[%clk 0:00:08]} 50. Rd7 {[%clk 0:00:03]}  Rf1 {[%clk 0:00:08]} 51. Rd6 {[%clk 0:00:03]}  h3 {[%clk 0:00:08]} 52. Kc5 {[%clk 0:00:02]}  h2 {[%clk 0:00:09]} 53. Bg2 {[%clk 0:00:02]}  Rg1 {[%clk 0:00:09]} 54. Bf3 {[%clk 0:00:02]}  Rf1 {[%clk 0:00:09]} 55. Bg2 {[%clk 0:00:02]}  h1=Q {[%clk 0:00:08]} 56. Bxh1 {[%clk 0:00:02]}  Rxh1 {[%clk 0:00:09]} 57. Rd4 {[%clk 0:00:02]}  Re1 {[%clk 0:00:09]} 58. Rf4 {[%clk 0:00:02]}  Rd1 {[%clk 0:00:09]} 59. Kc4 {[%clk 0:00:02]}  f5 {[%clk 0:00:09]} 60. Kc3 {[%clk 0:00:02]}  Kf6 {[%clk 0:00:09]} 61. Rf2 {[%clk 0:00:02]}  g5 {[%clk 0:00:09]} 62. Kc2 {[%clk 0:00:03]}  Rd5 {[%clk 0:00:09]} 63. Rh2 {[%clk 0:00:04]}  g4 {[%clk 0:00:09]} 64. Kc1 {[%clk 0:00:04]}  Kg5 {[%clk 0:00:09]} 65. Rh8 {[%clk 0:00:04]}  g3 {[%clk 0:00:09]} 66. Rg8+ {[%clk 0:00:05]}  Kf4 {[%clk 0:00:10]} 67. Rh8 {[%clk 0:00:06]}  Kf3 {[%clk 0:00:10]} 68. Rg8 {[%clk 0:00:07]}  g2 {[%clk 0:00:11]} 69. Rg5 {[%clk 0:00:07]}  Kf2 {[%clk 0:00:10]} 0-1


[Site "https://www.chess.com"]

[Event "Titled Tuesday Blitz December 13 Early 2022"]
[White "Kosteniuk, Alexandra"]
[Black "Xiong, Jeffery"]
[WhiteFideId "4128125"]
[BlackFideId "2047640"]
[WhiteElo "2469"]
[BlackElo "2726"]
[Result "0-1"]
[Round "03"]
[TimeControl "180+1"]
[Date "2022.12.13"]
[WhiteClock "0:01:07"]
[BlackClock "0:02:05"]

1. e4 {[%clk 0:03:00]}  c5 {[%clk 0:02:59]} 2. c3 {[%clk 0:03:01]}  e6 {[%clk 0:02:59]} 3. Nf3 {[%clk 0:03:00]}  Nc6 {[%clk 0:02:58]} 4. d4 {[%clk 0:02:56]}  cxd4 {[%clk 0:02:59]} 5. cxd4 {[%clk 0:02:56]}  d5 {[%clk 0:02:59]} 6. e5 {[%clk 0:02:56]}  Nge7 {[%clk 0:02:59]} 7. Na3 {[%clk 0:02:53]}  Nf5 {[%clk 0:02:58]} 8. Nc2 {[%clk 0:02:53]}  Qb6 {[%clk 0:02:54]} 9. Bd3 {[%clk 0:02:50]}  Bd7 {[%clk 0:02:52]} 10. Bxf5 {[%clk 0:02:46]}  exf5 {[%clk 0:02:53]} 11. O-O {[%clk 0:02:45]}  h6 {[%clk 0:02:54]} 12. Rb1 {[%clk 0:02:39]}  Be7 {[%clk 0:02:53]} 13. b4 {[%clk 0:02:38]}  g5 {[%clk 0:02:46]} 14. b5 {[%clk 0:02:20]}  Na5 {[%clk 0:02:46]} 15. Ne3 {[%clk 0:02:20]}  Be6 {[%clk 0:02:46]} 16. Qd3 {[%clk 0:02:19]}  f4 {[%clk 0:02:46]} 17. Nf5 {[%clk 0:02:16]}  Bxf5 {[%clk 0:02:40]} 18. Qxf5 {[%clk 0:02:16]}  Qg6 {[%clk 0:02:41]} 19. Qxg6 {[%clk 0:02:12]}  fxg6 {[%clk 0:02:42]} 20. Bd2 {[%clk 0:01:52]}  Nc4 {[%clk 0:02:42]} 21. Bc3 {[%clk 0:01:47]}  Kd7 {[%clk 0:02:41]} 22. e6+ {[%clk 0:01:39]}  Kxe6 {[%clk 0:02:41]} 23. Rfe1+ {[%clk 0:01:39]}  Kf7 {[%clk 0:02:29]} 24. Ne5+ {[%clk 0:01:36]}  Nxe5 {[%clk 0:02:29]} 25. dxe5 {[%clk 0:01:33]}  Ke6 {[%clk 0:02:29]} 26. Bd4 {[%clk 0:01:33]}  Rhc8 {[%clk 0:02:27]} 27. Red1 {[%clk 0:01:25]}  Rc4 {[%clk 0:02:23]} 28. Kf1 {[%clk 0:01:25]}  b6 {[%clk 0:02:23]} 29. Ke2 {[%clk 0:01:22]}  Rac8 {[%clk 0:02:23]} 30. Kd3 {[%clk 0:01:21]}  Ra4 {[%clk 0:02:23]} 31. Rd2 {[%clk 0:01:16]}  Rcc4 {[%clk 0:02:21]} 32. Ba1 {[%clk 0:01:16]}  Bc5 {[%clk 0:02:11]} 33. Ke2 {[%clk 0:01:07]}  Bb4 {[%clk 0:02:05]} 0-1


[Site "https://www.chess.com"]

[Event "Titled Tuesday Blitz December 13 Early 2022"]
[White "Kostiukov, Alexandr"]
[Black "Omelja, Artem"]
[WhiteFideId "14108100"]
[BlackFideId "14119846"]
[WhiteElo "2202"]
[BlackElo "2404"]
[Result "1-0"]
[Round "03"]
[TimeControl "180+1"]
[Date "2022.12.14"]
[WhiteClock "0:00:52"]
[BlackClock "0:00:04"]

1. g3 {[%clk 0:02:58]}  d5 {[%clk 0:02:37]} 2. Bg2 {[%clk 0:02:57]}  c6 {[%clk 0:02:36]} 3. d3 {[%clk 0:02:58]}  h5 {[%clk 0:02:37]} 4. Nf3 {[%clk 0:02:56]}  Nd7 {[%clk 0:02:35]} 5. O-O {[%clk 0:02:55]}  e5 {[%clk 0:02:35]} 6. e4 {[%clk 0:02:55]}  h4 {[%clk 0:02:32]} 7. Nxh4 {[%clk 0:02:51]}  Rxh4 {[%clk 0:02:31]} 8. gxh4 {[%clk 0:02:52]}  Qxh4 {[%clk 0:02:31]} 9. exd5 {[%clk 0:02:50]}  cxd5 {[%clk 0:02:27]} 10. Qf3 {[%clk 0:02:39]}  Ngf6 {[%clk 0:02:24]} 11. Qg3 {[%clk 0:02:37]}  Qh7 {[%clk 0:02:17]} 12. Re1 {[%clk 0:02:32]}  Bd6 {[%clk 0:02:14]} 13. d4 {[%clk 0:02:28]}  Ne4 {[%clk 0:02:10]} 14. Qh3 {[%clk 0:02:11]}  Qg6 {[%clk 0:01:35]} 15. Qh8+ {[%clk 0:02:05]}  Nf8 {[%clk 0:01:34]} 16. dxe5 {[%clk 0:02:02]}  Bxe5 {[%clk 0:01:28]} 17. Nd2 {[%clk 0:01:57]}  Bf5 {[%clk 0:01:24]} 18. Nxe4 {[%clk 0:01:54]}  dxe4 {[%clk 0:01:24]} 19. Qh4 {[%clk 0:01:46]}  Ne6 {[%clk 0:00:56]} 20. Kh1 {[%clk 0:01:27]}  f6 {[%clk 0:00:41]} 21. Bxe4 {[%clk 0:01:25]}  O-O-O {[%clk 0:00:40]} 22. Bg2 {[%clk 0:01:17]}  Nd4 {[%clk 0:00:35]} 23. Be3 {[%clk 0:01:14]}  Nxc2 {[%clk 0:00:30]} 24. Rac1 {[%clk 0:01:13]}  Kb8 {[%clk 0:00:30]} 25. Rxc2 {[%clk 0:00:59]}  Bxc2 {[%clk 0:00:30]} 26. Qb4 {[%clk 0:01:00]}  Qf7 {[%clk 0:00:20]} 27. Bf4 {[%clk 0:00:59]}  Bxf4 {[%clk 0:00:15]} 28. Qxf4+ {[%clk 0:00:58]}  Ka8 {[%clk 0:00:16]} 29. Rc1 {[%clk 0:00:55]}  Bd3 {[%clk 0:00:10]} 30. Rc7 {[%clk 0:00:53]}  Rd7 {[%clk 0:00:03]} 31. Bxb7+ {[%clk 0:00:52]}  Kb8 {[%clk 0:00:04]} 32. Rxd7# {[%clk 0:00:52]} 1-0


[Site "https://www.chess.com"]

[Event "Titled Tuesday Blitz December 13 Early 2022"]
[White "Kriti Mayur Patel"]
[Black "Ciuffoletti, Paolo"]
[WhiteFideId "35061780"]
[BlackFideId "807630"]
[WhiteElo "1306"]
[BlackElo "2143"]
[Result "0-1"]
[Round "03"]
[TimeControl "180+1"]
[Date "2022.12.14"]
[WhiteClock "0:01:01"]
[BlackClock "0:00:42"]

1. e4 {[%clk 0:03:00]}  c5 {[%clk 0:02:59]} 2. d4 {[%clk 0:03:01]}  cxd4 {[%clk 0:02:58]} 3. c3 {[%clk 0:03:02]}  d3 {[%clk 0:02:58]} 4. Bxd3 {[%clk 0:03:01]}  Nc6 {[%clk 0:02:57]} 5. c4 {[%clk 0:03:01]}  d6 {[%clk 0:02:57]} 6. Nc3 {[%clk 0:03:02]}  Nf6 {[%clk 0:02:56]} 7. f4 {[%clk 0:03:02]}  g6 {[%clk 0:02:51]} 8. Nf3 {[%clk 0:03:02]}  Bg7 {[%clk 0:02:50]} 9. O-O {[%clk 0:03:02]}  O-O {[%clk 0:02:48]} 10. Be3 {[%clk 0:03:03]}  Ng4 {[%clk 0:02:45]} 11. Bc1 {[%clk 0:02:57]}  Qb6+ {[%clk 0:02:42]} 12. Kh1 {[%clk 0:02:40]}  Nf2+ {[%clk 0:02:36]} 13. Rxf2 {[%clk 0:02:40]}  Qxf2 {[%clk 0:02:36]} 14. Nd5 {[%clk 0:02:34]}  Bg4 {[%clk 0:01:58]} 15. Be2 {[%clk 0:01:53]}  Bxf3 {[%clk 0:01:33]} 16. Bxf3 {[%clk 0:01:53]}  Rfe8 {[%clk 0:01:19]} 17. Be3 {[%clk 0:01:52]}  Qxb2 {[%clk 0:01:17]} 18. Rb1 {[%clk 0:01:51]}  Qxa2 {[%clk 0:01:12]} 19. Rxb7 {[%clk 0:01:52]}  Rab8 {[%clk 0:01:02]} 20. Rc7 {[%clk 0:01:39]}  Rb1 {[%clk 0:01:00]} 21. Bc1 {[%clk 0:01:39]}  Bb2 {[%clk 0:00:54]} 22. Rxc6 {[%clk 0:01:27]}  Rxc1 {[%clk 0:00:53]} 23. Qxc1 {[%clk 0:01:18]}  Bxc1 {[%clk 0:00:53]} 24. Rc7 {[%clk 0:01:18]}  Kf8 {[%clk 0:00:50]} 25. h3 {[%clk 0:01:12]}  Qf2 {[%clk 0:00:48]} 26. Kh2 {[%clk 0:01:10]}  e6 {[%clk 0:00:44]} 27. Nf6 {[%clk 0:01:02]}  Bxf4+ {[%clk 0:00:42]} 28. Kh1 {[%clk 0:01:01]}  Qf1# {[%clk 0:00:42]} 0-1


[Site "https://www.chess.com"]